fUSD/lending_fUSD_20250814
["ID","MTS","AMOUNT","RATE_DAILY","PERIOD"]
[379131873,1755152008519,-400.0,0.00058904,120]
[379131874,1755152008528,-2532.79,0.00058904,120]
[379131875,1755152008538,-744.6,0.00058904,120]
[379131876,1755152008547,-4409.46,0.00058904,120]
[379131877,1755152008556,-2723.98,0.00058904,120]
[379131878,1755152008567,-3418.49,0.00058904,120]
[379131879,1755152008576,-4037.29,0.00058904,120]
[379131880,1755152008585,-4195.01,0.00058904,120]
[379131881,1755152008596,-400.0,0.00058904,120]
[379131882,1755152008606,-400.0,0.00058904,120]
[379131883,1755152008617,-711.43,0.00058904,120]
[379131884,1755152008627,-400.0,0.00058904,120]
[379131885,1755152008637,-545.91,0.00058904,120]
[379131886,1755152008646,-2283.95,0.00058904,120]
[379131887,1755152008656,-4900.95,0.00058904,120]
[379131888,1755152008666,-400.0,0.00058904,120]
[379131889,1755152008676,-400.0,0.00058904,120]
[379131890,1755152008685,-1999.15,0.00058904,120]
[379131891,1755152008696,-3909.03,0.00058904,120]
[379131892,1755152008707,-409.06,0.00058904,120]
[379131893,1755152008716,-1532.89,0.00058904,120]
[379131894,1755152008726,-400.0,0.00058904,120]
[379131895,1755152008735,-400.0,0.00058904,120]
[379131896,1755152008746,-1318.43,0.00058904,120]
[379131897,1755152008755,-5253.86,0.00058904,120]
[379131898,1755152008764,-6094.57,0.00058904,120]
[379131899,1755152008773,-1418.89,0.00058904,120]
[379131900,1755152008782,-400.0,0.00058904,120]
[379131901,1755152008791,-20377.53,0.00058904,120]
[379131902,1755152008800,-7791.38,0.00058904,120]
[379131903,1755152008810,-536.35,0.00058904,120]
[379131904,1755152008819,-777.28,0.00058904,120]
[379131905,1755152008828,-250.0,0.00058904,120]
[379131906,1755152008838,-803.08,0.00058904,120]
[379131907,1755152008848,-4524.24,0.00058904,120]
[379131908,1755152008858,-400.0,0.00058904,120]
[379131909,1755152008868,-400.0,0.00058904,120]
[379131910,1755152008878,-400.0,0.00058904,120]
[379131911,1755152008889,-400.0,0.00058904,120]
[379131912,1755152008898,-400.0,0.00058904,120]
[379131913,1755152008907,-636.7,0.00058904,120]
[379131914,1755152008917,-6559.14,0.00058904,120]
[379131915,1755152008927,-7543.93,0.00058904,120]
[379131916,1755152008937,-3309.87,0.00058904,120]
[379131917,1755152008948,-400.0,0.00058904,120]
[379131918,1755152008959,-1839.95,0.00058904,120]
[379131919,1755152008970,-2152.61,0.00058904,120]
[379131920,1755152008980,-3366.95,0.00058904,120]
[379131921,1755152008989,-5994.36,0.00058904,120]
[379131922,1755152008999,-400.0,0.00058904,120]
[379131923,1755152009010,-1919.24,0.00058904,120]
[379131924,1755152009021,-617.55,0.00058904,120]
[379131925,1755152009030,-1316.43,0.00058904,120]
[379131926,1755152009039,-400.0,0.00058904,120]
[379131927,1755152009051,-2128.5,0.00058904,120]
[379131928,1755152009061,-400.0,0.00058904,120]
[379131929,1755152009071,-2371.16,0.00058904,120]
[379131930,1755152009080,-400.0,0.00058904,120]
[379131931,1755152009089,-3587.82,0.00058904,120]
[379131932,1755152009099,-7358.71,0.00058904,120]
[379131933,1755152009108,-1968.63,0.00058904,120]
[379131934,1755152009117,-1425.03,0.00058904,120]
[379131935,1755152009127,-6345.68,0.00058904,120]
[379131936,1755152009137,-1175.19,0.00058904,120]
[379131937,1755152009146,-400.0,0.00058904,120]
[379131938,1755152009155,-3111.21,0.00058904,120]
[379131939,1755152009165,-646.46,0.00058904,120]
[379131940,1755152009174,-401.44,0.00058904,120]
[379131941,1755152009184,-400.0,0.00058904,120]
[379131942,1755152009194,-693.3,0.00058904,120]
[379131943,1755152009204,-2377.46,0.00058904,120]
[379131944,1755152009213,-400.0,0.00058904,120]
[379131945,1755152009222,-940.0,0.00058904,120]
[379131946,1755152009231,-517.35,0.00058904,120]
[379131947,1755152009241,-5602.35,0.00058904,120]
[379131948,1755152009250,-624.92,0.00058904,120]
[379131949,1755152009259,-3950.72,0.00058904,120]
[379131950,1755152009269,-4573.77,0.00058904,120]
[379131951,1755152009278,-400.0,0.00058904,120]
[379131952,1755152009287,-652.5,0.00058904,120]
[379131953,1755152009297,-400.0,0.00058904,120]
[379131954,1755152009307,-2054.25,0.00058904,120]
[379131955,1755152009316,-400.0,0.00058904,120]
[379131956,1755152009326,-583.61,0.00058904,120]
[379131957,1755152009336,-11929.2,0.00058904,120]
[379131958,1755152009346,-5329.6,0.00058904,120]
[379131959,1755152009357,-400.0,0.00058904,120]
[379131960,1755152009367,-448.76,0.00058904,120]
[379131961,1755152009377,-400.0,0.00058904,120]
[379131962,1755152009386,-400.0,0.00058904,120]
[379131963,1755152009395,-400.0,0.00058904,120]
[379131964,1755152009405,-3617.89,0.00058904,120]
[379131965,1755152009414,-1615.63,0.00058904,120]
[379131966,1755152009424,-5074.18,0.00058904,120]
[379131967,1755152009433,-400.0,0.00058904,120]
[379131968,1755152009444,-769.03,0.00058904,120]
[379131969,1755152009452,-7493.39,0.00058904,120]
[379131970,1755152009462,-400.0,0.00058904,120]
[379131971,1755152009472,-400.0,0.00058904,120]
[379131972,1755152009481,-737.42,0.00058904,120]
[379131973,1755152009491,-400.0,0.00058904,120]
[379131974,1755152009501,-4803.32,0.00058904,120]
[379131975,1755152009511,-400.0,0.00058904,120]
[379131976,1755152009520,-471.48,0.00058904,120]
[379131977,1755152009530,-400.0,0.00058904,120]
[379131978,1755152009539,-533.6,0.00058904,120]
[379131979,1755152009549,-400.0,0.00058904,120]
[379131980,1755152009558,-9562.11,0.00058904,120]
[379131981,1755152009568,-630.94,0.00058904,120]
[379131982,1755152009578,-810.43,0.00058904,120]
[379131983,1755152009587,-412.76,0.00058904,120]
[379131984,1755152009596,-400.0,0.00058904,120]
[379131985,1755152009606,-3374.23,0.00058904,120]
[379131986,1755152009615,-3424.61,0.00058904,120]
[379131987,1755152009624,-400.0,0.00058904,120]
[379131988,1755152009634,-1022.07,0.00058904,120]
[379131989,1755152009643,-6827.99,0.00058904,120]
[379131990,1755152009653,-400.0,0.00058904,120]
[379131991,1755152009662,-5238.96,0.00058904,120]
[379131992,1755152009671,-1263.51,0.00058904,120]
[379131993,1755152009681,-3712.76,0.00058904,120]
[379131994,1755152009691,-5099.85,0.00058904,120]
[379131995,1755152009701,-12607.61,0.00058904,14]
[379131996,1755152009711,-400.0,0.00058904,120]
[379131997,1755152009719,-400.0,0.00058904,120]
[379131998,1755152009729,-452.63,0.00058904,120]
[379131999,1755152009738,-9461.59,0.00058904,120]
[379132000,1755152009748,-1280.0,0.00058904,120]
[379132001,1755152009758,-3336.58,0.00058904,120]
[379132002,1755152009768,-1440.53,0.00058904,120]
[379132003,1755152009777,-3572.12,0.00058904,120]
[379132004,1755152009786,-1037.13,0.00058904,120]
[379132005,1755152009796,-400.0,0.00058904,120]
[379132006,1755152009805,-400.0,0.00058904,120]
[379132007,1755152009814,-2387.29,0.00058904,120]
[379132008,1755152009824,-645.37,0.00058904,120]
[379132009,1755152009833,-3470.66,0.00058904,120]
[379132010,1755152009843,-2302.92,0.00058904,120]
[379132011,1755152009852,-13098.21,0.00058904,120]
[379132012,1755152009862,-2443.69,0.00058904,120]
[379132013,1755152009871,-6861.07,0.00058904,120]
[379132014,1755152009880,-400.0,0.00058904,120]
[379132015,1755152009889,-400.0,0.00058904,120]
[379132016,1755152009898,-3620.51,0.00058904,120]
[379132017,1755152009907,-775.24,0.00058904,120]
[379132018,1755152009921,-2042.69,0.00058904,120]
[379132019,1755152009930,-697.92,0.00058904,120]
[379132020,1755152009941,-400.0,0.00058904,120]
[379132021,1755152009950,-514.82154757,0.00058904,120]
[379132022,1755152009960,-400.0,0.00058904,120]
[379132023,1755152009974,-1558.59,0.00058904,120]
[379132024,1755152009986,-4330.88,0.00058904,120]
[379132025,1755152009996,-1879.63,0.00058904,120]
[379132026,1755152010006,-10954.8,0.00058904,120]
[379132027,1755152010015,-400.0,0.00058904,120]
[379132028,1755152010025,-400.0,0.00058904,2]
[379132029,1755152010035,-10795.64,0.00058904,120]
[379132030,1755152010046,-542.57,0.00058904,120]
[379132031,1755152010055,-1441.73,0.00058904,120]
[379132032,1755152010064,-400.0,0.00058904,120]
[379132033,1755152010073,-5005.36,0.00058904,120]
[379132034,1755152010083,-400.0,0.00058904,120]
[379132035,1755152010093,-400.0,0.00058904,120]
[379132036,1755152010103,-8104.07,0.00058904,120]
[379132037,1755152010112,-634.31,0.00058904,120]
[379132038,1755152010122,-400.0,0.00058904,120]
[379132039,1755152010131,-609.96,0.00058904,120]
[379132040,1755152010141,-831.88,0.00058904,120]
[379132041,1755152010150,-2164.47,0.00058904,120]
[379132042,1755152010160,-673.2,0.00058904,2]
[379132043,1755152010169,-526.11,0.00058904,120]
[379132044,1755152010179,-400.0,0.00058904,120]
[379132045,1755152010188,-400.0,0.00058904,120]
[379132046,1755152010199,-5199.58,0.00058904,120]
[379132047,1755152010209,-400.0,0.00058904,120]
[379132048,1755152010218,-400.0,0.00058904,120]
[379132049,1755152010227,-2958.7,0.00058904,120]
[379132050,1755152010237,-2523.17,0.00058904,120]
[379132051,1755152010246,-8388.56,0.00058904,120]
[379132052,1755152010255,-400.0,0.00058904,120]
[379132053,1755152010265,-400.0,0.00058904,120]
[379132054,1755152010275,-247.33,0.00058963,120]
[379132055,1755152010284,-13132.35,0.00059,60]
[379132056,1755152010294,-64029.85,0.00059,120]
[379132057,1755152010303,-500000.0,0.00059,120]
[379132058,1755152010312,-500000.0,0.00059,120]
[379132059,1755152010322,-500000.0,0.00059,120]
[379132060,1755152010331,-8700.0,0.00059,120]
[379132061,1755152010340,-301.33426579,0.00059,120]
[379132062,1755152010349,-2359.58,0.00059119,30]
[379132063,1755152010359,-513.0,0.00059314,37]
[379132064,1755152010369,-400.0,0.0005936,120]
[379132065,1755152010378,-155.0,0.000595,120]
[379132066,1755152010388,-654.0,0.0005961,2]
[379132067,1755152010398,-40000.0,0.000597,4]
[379132068,1755152010407,-1288.51,0.00059726,120]
[379132069,1755152010415,-3935.8,0.00059726,120]
[379132070,1755152010425,-993.07,0.00059726,120]
[379132071,1755152010434,-444.17543667,0.00059726,120]
[379132072,1755152010447,-400.0,0.00059726,120]
[379132073,1755152010456,-400.0,0.00059726,120]
[379132074,1755152010466,-400.0,0.00059726,120]
[379132075,1755152010475,-400.0,0.00059726,120]
[379132076,1755152010485,-400.0,0.00059726,120]
[379132077,1755152010494,-400.0,0.00059726,120]
[379132078,1755152010503,-400.0,0.00059726,120]
[379132079,1755152010512,-400.0,0.00059726,120]
[379132080,1755152010521,-400.0,0.00059726,120]
[379132081,1755152010530,-400.0,0.00059726,120]
[379132082,1755152010539,-400.0,0.00059726,120]
[379132083,1755152010549,-400.0,0.00059726,120]
[379132084,1755152010559,-400.0,0.00059726,120]
[379132085,1755152010569,-1599.04,0.00059726,120]
[379132086,1755152010579,-400.0,0.00059726,120]
[379132087,1755152010588,-400.0,0.00059726,120]
[379132088,1755152010597,-400.0,0.00059726,120]
[379132089,1755152010607,-400.0,0.00059726,120]
[379132090,1755152010616,-400.0,0.00059726,120]
[379132091,1755152010625,-400.0,0.00059726,120]
[379132092,1755152010634,-400.89,0.00059726,120]
[379132093,1755152010643,-500.0,0.00059726,2]
[379132094,1755152010652,-469.55402385,0.00059726,120]
[379132095,1755152010661,-400.0,0.00059726,120]
[379132096,1755152010670,-1306.08,0.00059726,120]
[379132097,1755152010679,-400.0,0.00059726,120]
[379132098,1755152010688,-1708.88,0.00059726,120]
[379132099,1755152010699,-400.0,0.00059726,120]
[379132100,1755152010708,-400.0,0.00059726,120]
[379132101,1755152010718,-400.0,0.00059726,120]
[379132102,1755152010727,-1894.75,0.00059726,120]
[379132103,1755152010736,-3248.67,0.00059726,120]
[379132104,1755152010745,-347.29659415,0.00059726,120]
[379132105,1755152010754,-510.95,0.00059726,120]
[379132106,1755152010763,-684.44,0.00059726,120]
[379132107,1755152010772,-854.770045,0.00059726,120]
[379132108,1755152010781,-400.0,0.00059726,120]
[379132109,1755152010790,-710.57,0.00059726,120]
[379132110,1755152010799,-1049.79,0.00059726,120]
[379132111,1755152010808,-162.009433,0.00059726,120]
[379132112,1755152010817,-400.0,0.00059726,120]
[379132113,1755152010826,-1320.49,0.00059726,30]
[379132114,1755152010835,-400.0,0.00059726,120]
[379132115,1755152010844,-941.38,0.00059726,120]
[379132116,1755152010854,-400.0,0.00059726,120]
[379132117,1755152010863,-400.0,0.00059726,120]
[379132118,1755152010872,-831.0,0.00059726,120]
[379132119,1755152010881,-412.41,0.00059726,120]
[379132120,1755152010890,-654.424317,0.00059726,120]
[379132121,1755152010900,-510.65,0.00059726,120]
[379132122,1755152010909,-400.0,0.00059726,120]
[379132123,1755152010918,-1013.506298,0.00059726,120]
[379132124,1755152010927,-400.0,0.00059726,120]
[379132125,1755152010936,-923.09,0.00059726,120]
[379132126,1755152010948,-400.0,0.00059726,120]
[379132127,1755152010958,-763.46,0.00059726,120]
[379132128,1755152010970,-276.531266,0.00059726,120]
[379132129,1755152010979,-400.0,0.00059726,120]
[379132130,1755152010989,-1059.25,0.00059726,120]
[379132131,1755152010999,-2247.15,0.00059726,120]
[379132132,1755152011009,-400.0,0.00059726,120]
[379132133,1755152011019,-757.93,0.00059726,120]
[379132134,1755152011029,-400.0,0.00059726,120]
[379132135,1755152011039,-495.55,0.00059726,120]
[379132136,1755152011047,-1166.88,0.00059726,120]
[379132137,1755152011056,-400.0,0.00059726,120]
[379132138,1755152011065,-400.0,0.00059726,120]
[379132139,1755152011075,-1435.74,0.00059726,120]
[379132140,1755152011084,-3108.2,0.00059726,120]
[379132141,1755152011092,-400.0,0.00059726,120]
[379132142,1755152011101,-2535.34,0.00059726,120]
[379132143,1755152011112,-1075.79,0.00059726,120]
[379132144,1755152011121,-400.0,0.00059726,120]
[379132145,1755152011130,-400.0,0.00059726,120]
[379132146,1755152011140,-2361.73,0.00059726,120]
[379132147,1755152011149,-491.31,0.00059726,120]
[379132148,1755152011158,-423.58,0.00059726,120]
[379132149,1755152011167,-849.81,0.00059726,120]
[379132150,1755152011177,-400.0,0.00059726,120]
[379132151,1755152011186,-397.06660296,0.00059726,120]
[379132152,1755152011197,-764.83,0.00059726,120]
[379132153,1755152011207,-677.79,0.00059726,120]
[379132154,1755152011216,-400.0,0.00059726,120]
[379132155,1755152011225,-400.0,0.00059726,120]
[379132156,1755152011234,-735.32,0.00059726,120]
[379132157,1755152011243,-400.0,0.00059726,120]
[379132158,1755152011251,-1968.98,0.00059726,120]
[379132159,1755152011261,-953.58,0.00059726,120]
[379132160,1755152011270,-919.31,0.00059726,120]
[379132161,1755152011279,-400.0,0.00059726,120]
[379132162,1755152011289,-926.46,0.00059726,120]
[379132163,1755152011299,-400.0,0.00059726,120]
[379132164,1755152011308,-400.0,0.00059726,120]
[379132165,1755152011317,-1638.37,0.00059726,120]
[379132166,1755152011327,-2344.2,0.00059726,120]
[379132167,1755152011336,-738.18,0.00059726,120]
[379132168,1755152011346,-393.64648146,0.00059726,120]
[379132169,1755152011355,-1830.88,0.00059726,120]
[379132170,1755152011364,-400.0,0.00059726,120]
[379132171,1755152011374,-400.0,0.00059726,120]
[379132172,1755152011383,-2134.61,0.00059726,120]
[379132173,1755152011393,-400.0,0.00059726,120]
[379132174,1755152011403,-400.0,0.00059726,120]
[379132175,1755152011413,-400.0,0.00059726,120]
[379132176,1755152011422,-1458.72,0.00059726,120]
[379132177,1755152011431,-1778.19,0.00059726,120]
[379132178,1755152011442,-400.0,0.00059726,120]
[379132179,1755152011584,-400.0,0.00059726,120]
[379132180,1755152011598,-494.38,0.00059726,120]
[379132181,1755152011608,-1224.65,0.00059726,120]
[379132182,1755152011618,-416.33,0.00059726,120]
[379132183,1755152011627,-400.0,0.00059726,120]
[379132184,1755152011637,-1483.14,0.00059726,120]
[379132185,1755152011646,-663.87,0.00059726,120]
[379132186,1755152011655,-400.0,0.00059726,120]
[379132187,1755152011665,-400.0,0.00059726,120]
[379132188,1755152011674,-406.20856162,0.00059726,120]
[379132189,1755152011684,-683.0,0.00059726,120]
[379132190,1755152011695,-898.77,0.00059726,60]
[379132191,1755152011704,-853.09,0.00059726,120]
[379132192,1755152011714,-403.0591388,0.00059726,14]
[379132193,1755152011724,-400.0,0.00059726,120]
[379132194,1755152011733,-682.62,0.00059726,120]
[379132195,1755152011742,-525.69,0.00059726,120]
[379132196,1755152011752,-400.0,0.00059726,120]
[379132197,1755152011761,-400.0,0.00059726,30]
[379132198,1755152011770,-400.0,0.00059726,120]
[379132199,1755152011780,-439.52,0.00059726,120]
[379132200,1755152011790,-333.28078337,0.00059726,120]
[379132201,1755152011799,-408.74,0.00059726,120]
[379132202,1755152011809,-400.0,0.00059726,120]
[379132203,1755152011819,-633.09,0.00059726,120]
[379132204,1755152011828,-749.16,0.00059726,120]
[379132205,1755152011837,-400.0,0.00059726,120]
[379132206,1755152011847,-400.0,0.00059726,120]
[379132207,1755152011856,-549.77,0.00059726,120]
[379132208,1755152011867,-400.0,0.00059726,120]
[379132209,1755152011877,-1613.96,0.00059726,120]
[379132210,1755152011887,-1832.53,0.00059726,120]
[379132211,1755152011897,-1063.66,0.00059726,120]
[379132212,1755152011907,-400.0,0.00059726,120]
[379132213,1755152011917,-400.0,0.00059726,120]
[379132214,1755152011927,-400.0,0.00059726,120]
[379132215,1755152011937,-526.65,0.00059726,120]
[379132216,1755152011949,-400.0,0.00059726,120]
[379132217,1755152011960,-400.0,0.00059726,120]
[379132218,1755152011972,-400.0,0.00059726,120]
[379132219,1755152011982,-413.05,0.00059726,120]
[379132220,1755152011992,-400.0,0.00059726,120]
[379132221,1755152012002,-888.91,0.00059726,120]
[379132222,1755152012011,-483.51,0.00059726,120]
[379132223,1755152012021,-1124.78,0.00059726,120]
[379132224,1755152012030,-400.0,0.00059726,120]
[379132225,1755152012040,-518.91,0.00059726,120]
[379132226,1755152012051,-537.81,0.00059726,120]
[379132227,1755152012061,-168.83359258,0.00059726,120]
[379132228,1755152012070,-1231.11,0.00059726,120]
[379132229,1755152012080,-400.0,0.00059726,120]
[379132230,1755152012089,-400.0,0.00059726,120]
[379132231,1755152012099,-417.32,0.00059726,120]
[379132232,1755152012109,-400.0,0.00059726,120]
[379132233,1755152012118,-1207.1,0.00059726,120]
[379132234,1755152012128,-400.0,0.00059726,120]
[379132235,1755152012138,-417.19,0.00059726,120]
[379132236,1755152012149,-931.84,0.00059726,120]
[379132237,1755152012158,-400.0,0.00059726,120]
[379132238,1755152012168,-400.0,0.00059726,120]
[379132239,1755152012177,-400.0,0.00059726,120]
[379132240,1755152012186,-400.0,0.00059726,120]
[379132241,1755152012198,-1319.73,0.00059726,120]
[379132242,1755152012208,-400.0,0.00059726,120]
[379132243,1755152012218,-2169.82,0.00059726,120]
[379132244,1755152012227,-447.12329397,0.00059726,120]
[379132245,1755152012237,-400.0,0.00059726,120]
[379132246,1755152012247,-400.0,0.00059726,120]
[379132247,1755152012257,-843.53,0.00059726,120]
[379132248,1755152012266,-400.0,0.00059726,120]
[379132249,1755152012276,-507.06,0.00059726,120]
[379132250,1755152012286,-400.0,0.00059726,120]
[379132251,1755152012296,-1647.52,0.00059726,120]
[379132252,1755152012306,-1255.35,0.00059726,120]
[379132253,1755152012316,-435.47,0.00059726,120]
[379132254,1755152012326,-400.0,0.00059726,120]
[379132255,1755152012335,-2343.63,0.00059726,120]
[379132256,1755152012344,-400.0,0.00059726,120]
[379132257,1755152012354,-1336.7,0.00059726,120]
[379132258,1755152012364,-1524.01,0.00059726,120]
[379132259,1755152012374,-400.0,0.00059726,120]
[379132260,1755152012384,-1100.6,0.00059726,120]
[379132261,1755152012394,-400.0,0.00059726,120]
[379132262,1755152012404,-400.0,0.00059726,120]
[379132263,1755152012413,-536.21,0.00059726,120]
[379132264,1755152012423,-591.66,0.00059726,120]
[379132265,1755152012433,-400.0,0.00059726,120]
[379132266,1755152012445,-400.0,0.00059726,120]
[379132267,1755152012454,-400.0,0.00059726,120]
[379132268,1755152012464,-1196.29,0.00059726,120]
[379132269,1755152012474,-680.02,0.00059726,120]
[379132270,1755152012483,-511.48,0.00059726,120]
[379132271,1755152012494,-1028.17,0.00059726,120]
[379132272,1755152012503,-2359.32,0.00059726,120]
[379132273,1755152012513,-450.14,0.00059726,120]
[379132274,1755152012523,-512.79,0.00059726,120]
[379132275,1755152012534,-880.18,0.00059726,120]
[379132276,1755152012545,-411.91,0.00059726,120]
[379132277,1755152012555,-400.0,0.00059726,120]
[379132278,1755152012565,-400.0,0.00059726,120]
[379132279,1755152012574,-2065.78,0.00059726,120]
[379132280,1755152012583,-2269.12,0.00059726,120]
[379132281,1755152012592,-3933.34,0.00059726,120]
[379132282,1755152012603,-430.86,0.00059726,120]
[379132283,1755152012612,-400.0,0.00059726,120]
[379132284,1755152012623,-400.0,0.00059726,120]
[379132285,1755152012633,-567.22,0.00059726,2]
[379132286,1755152012643,-3388.22,0.00059726,120]
[379132287,1755152012653,-706.75,0.00059726,120]
[379132288,1755152012664,-806.62,0.00059726,120]
[379132289,1755152012673,-3022.65,0.00059726,120]
[379132290,1755152012684,-1072.62,0.00059726,120]
[379132291,1755152012695,-400.0,0.00059726,120]
[379132292,1755152012705,-474.98,0.00059726,120]
[379132293,1755152012715,-400.0,0.00059726,120]
[379132294,1755152012725,-400.0,0.00059726,120]
[379132295,1755152012735,-407.13191069,0.00059726,120]
[379132296,1755152012745,-397.48025926,0.00059726,120]
[379132297,1755152012755,-400.0,0.00059726,120]
[379132298,1755152012765,-400.0,0.00059726,120]
[379132299,1755152012775,-400.0,0.00059726,120]
[379132300,1755152012785,-400.0,0.00059726,2]
[379132301,1755152012795,-2669.21,0.00059726,120]
[379132302,1755152012805,-400.3,0.00059726,120]
[379132303,1755152012816,-451.65653952,0.00059726,120]
[379132304,1755152012826,-1124.34,0.00059726,120]
[379132305,1755152012836,-400.0,0.00059726,120]
[379132306,1755152012846,-400.0,0.00059726,120]
[379132307,1755152012856,-474.15110076,0.00059726,120]
[379132308,1755152012865,-1646.35,0.00059726,120]
[379132309,1755152012875,-400.0,0.00059726,30]
[379132310,1755152012885,-986.63,0.00059726,120]
[379132311,1755152012895,-574.51,0.00059726,120]
[379132312,1755152012905,-1010.52,0.00059726,120]
[379132313,1755152012914,-3068.68,0.00059726,120]
[379132314,1755152012924,-400.0,0.00059726,120]
[379132315,1755152012934,-1157.99,0.00059726,120]
[379132316,1755152012945,-1280.68,0.00059726,120]
[379132317,1755152012955,-631.96,0.00059726,120]
[379132318,1755152012967,-400.0,0.00059726,120]
[379132319,1755152012980,-442.43,0.00059726,120]
[379132320,1755152012990,-1231.47,0.00059726,120]
[379132321,1755152013000,-2509.4,0.00059726,120]
[379132322,1755152013020,-930.15,0.00059726,120]
[379132323,1755152013042,-400.0,0.00059726,120]
[379132324,1755152013053,-474.55,0.00059726,120]
[379132325,1755152013063,-400.0,0.00059726,120]
[379132326,1755152013074,-542.34,0.00059726,120]
[379132327,1755152013084,-4323.94,0.00059726,120]
[379132328,1755152013095,-1001.49,0.00059726,120]
[379132329,1755152013105,-400.0,0.00059726,120]
[379132330,1755152013115,-1026.06,0.00059726,120]
[379132331,1755152013125,-2393.33,0.00059726,120]
[379132332,1755152013137,-774.99,0.00059726,120]
[379132333,1755152013147,-4246.54,0.00059726,120]
[379132334,1755152013157,-400.0,0.00059726,120]
[379132335,1755152013167,-2333.02,0.00059726,120]
[379132336,1755152013177,-522.19,0.00059726,120]
[379132337,1755152013187,-400.0,0.00059726,120]
[379132338,1755152013197,-524.14,0.00059726,120]
[379132339,1755152013207,-481.66,0.00059726,120]
[379132340,1755152013217,-400.0,0.00059726,120]
[379132341,1755152013227,-400.0,0.00059726,120]
[379132342,1755152013238,-3378.52,0.00059726,120]
[379132343,1755152013248,-1270.22,0.00059726,120]
[379132344,1755152013259,-400.0,0.00059726,120]
[379132345,1755152013269,-471.19,0.00059726,120]
[379132346,1755152013279,-596.35,0.00059726,120]
[379132347,1755152013288,-400.0,0.00059726,120]
[379132348,1755152013298,-400.0,0.00059726,120]
[379132349,1755152013308,-2137.2,0.00059726,120]
[379132350,1755152013318,-784.0,0.00059726,120]
[379132351,1755152013328,-400.0,0.00059726,120]
[379132352,1755152013338,-1201.9,0.00059726,120]
[379132353,1755152013348,-4803.22,0.00059726,120]
[379132354,1755152013359,-400.0,0.00059726,120]
[379132355,1755152013370,-2422.17,0.00059726,120]
[379132356,1755152013380,-400.0,0.00059726,120]
[379132357,1755152013390,-408.97722558,0.00059726,120]
[379132358,1755152013400,-806.69,0.00059726,120]
[379132359,1755152013410,-415.24,0.00059726,2]
[379132360,1755152013420,-756.82,0.00059726,120]
[379132361,1755152013430,-776.05,0.00059726,120]
[379132362,1755152013440,-400.0,0.00059726,120]
[379132363,1755152013449,-737.75,0.00059726,120]
[379132364,1755152013460,-1099.84,0.00059726,120]
[379132365,1755152013470,-2190.42,0.00059726,120]
[379132366,1755152013481,-443.25,0.00059726,120]
[379132367,1755152013491,-452.45,0.00059726,120]
[379132368,1755152013501,-400.0,0.00059726,120]
[379132369,1755152013511,-1674.15,0.00059726,120]
[379132370,1755152013520,-3816.16,0.00059726,120]
[379132371,1755152013530,-2600.42,0.00059726,120]
[379132372,1755152013540,-1324.56,0.00059726,120]